bitfinex-derivatives/quotes_BTCF0:USTF0_20260113
["timestamp","ask_amount","ask_price","bid_price","bid_amount"]
[1768332161066,0.09169609,93859.0,93833.0,0.106661]
[1768332161365,0.010659,93847.0,93821.0,0.00011331]
[1768332161664,0.010658,93863.0,93822.0,0.096]
[1768332161665,0.01066,93842.0,93822.0,0.096]
[1768332162159,0.010661,93836.0,93821.0,0.00011331]
[1768332162364,0.01066,93840.0,93822.0,0.096]
[1768332162563,0.01066,93841.0,93822.0,0.096]
[1768332163466,9.087e-05,93840.0,93822.0,0.096]
[1768332164665,0.09169609,93839.0,93822.0,0.096]
[1768332164870,0.010661,93833.0,93822.0,0.096]
[1768332165165,9.087e-05,93840.0,93822.0,0.096]
[1768332165366,0.08869609,93887.0,93830.0,0.28346768]
[1768332165565,0.08869609,93887.0,93870.0,0.14173384]
[1768332165761,0.010655,93885.0,93865.0,0.09596]
[1768332166064,0.010656,93882.0,93866.0,0.09596]
[1768332166265,0.09815567,93887.0,93865.0,0.09596]
[1768332166457,0.010657,93869.0,93850.0,0.14173384]
[1768332166661,0.01597921,93893.0,93851.0,0.09596]
[1768332166662,0.09815567,93886.0,93851.0,0.09596]
[1768332166862,0.010657,93870.0,93852.0,0.09596]
[1768332167162,0.010657,93869.0,93852.0,0.09596]
[1768332167367,0.010657,93870.0,93852.0,0.09596]
[1768332167562,0.010657,93868.0,93852.0,0.09596]
[1768332167872,0.00015978,93870.0,93852.0,0.09596]
[1768332168371,0.010657,93866.0,93852.0,0.09596]
[1768332168570,0.00015978,93870.0,93851.0,0.00015978]
[1768332169168,0.00015978,93870.0,93852.0,0.09596]
[1768332169169,0.01081678,93870.0,93852.0,0.09596]
[1768332169358,0.00015978,93870.0,93852.0,0.09596]
[1768332169559,0.010657,93867.0,93852.0,0.09596]
[1768332169960,0.010657,93866.0,93852.0,0.09596]
[1768332170159,0.00015978,93870.0,93852.0,0.09596]
[1768332170562,0.010657,93866.0,93852.0,0.09596]
[1768332171077,0.00015978,93870.0,93852.0,0.09596]
[1768332171256,0.010657,93865.0,93852.0,0.09596]
[1768332171465,0.00015978,93870.0,93851.0,0.00015978]
[1768332171772,0.09169609,93864.0,93851.0,7.8e-07]
[1768332172272,0.010658,93861.0,93851.0,7.8e-07]
[1768332172466,0.09169609,93864.0,93851.0,7.8e-07]
[1768332172655,0.010658,93862.0,93851.0,7.8e-07]
[1768332172860,0.010659,93854.0,93851.0,7.8e-07]
[1768332173070,0.010658,93857.0,93851.0,7.8e-07]
[1768332173371,0.09169609,93856.0,93838.0,0.09596]
[1768332173576,0.09169609,93856.0,93833.0,0.00532862]
[1768332173577,0.09169609,93848.0,93833.0,6.2e-07]
[1768332173772,0.01066,93838.0,93833.0,6.2e-07]
[1768332174071,0.01066,93839.0,93833.0,6.2e-07]
[1768332174270,0.01066,93846.0,93833.0,6.2e-07]
[1768332174473,0.01066,93844.0,93833.0,6.2e-07]
[1768332174768,0.00015978,93845.0,93833.0,6.2e-07]
[1768332174769,0.01066,93839.0,93833.0,6.2e-07]
[1768332174972,0.00015978,93845.0,93833.0,6.2e-07]
[1768332175170,1e-08,93845.0,93833.0,6.2e-07]
[1768332177771,0.01066,93840.0,93833.0,6.2e-07]
[1768332177974,0.010661,93838.0,93833.0,6.2e-07]
[1768332178176,0.0916961,93845.0,93833.0,6.2e-07]
[1768332178379,0.010661,93837.0,93833.0,6.2e-07]
[1768332178766,0.0916961,93845.0,93833.0,6.2e-07]
[1768332179170,0.010661,93837.0,93833.0,6.2e-07]
[1768332179367,1e-08,93845.0,93833.0,6.2e-07]
[1768332179568,0.01066,93838.0,93833.0,6.2e-07]
[1768332179772,1e-08,93845.0,93833.0,6.2e-07]
[1768332179974,0.010661,93835.0,93833.0,6.2e-07]
[1768332182568,1e-08,93845.0,93833.0,6.2e-07]
[1768332182879,0.010661,93837.0,93833.0,6.2e-07]
[1768332183079,0.010661,93835.0,93833.0,6.2e-07]
[1768332183280,0.09169609,93834.0,93820.0,0.09596]
[1768332183498,0.010663,93820.0,93800.0,0.15239884]
[1768332183775,0.010661,93837.0,93800.0,0.14173384]
[1768332183776,0.010663,93816.0,93800.0,0.14173384]
[1768332183981,0.09169609,93830.0,93801.0,0.09596]
[1768332184181,0.09169609,93824.0,93796.0,0.05959974]
[1768332184366,0.09169609,93824.0,93797.0,0.09596]
[1768332184570,0.010663,93820.0,93802.0,0.010664]
[1768332184869,0.010663,93818.0,93800.0,0.14173384]
[1768332185271,0.010663,93818.0,93792.0,0.91548]
[1768332185272,0.09087775,93822.0,93801.0,0.09596]
[1768332185678,0.010663,93816.0,93801.0,0.09596]
[1768332185883,0.010664,93806.0,93786.0,0.010666]
[1768332186091,0.010664,93806.0,93791.0,0.09596]
[1768332186286,0.09087775,93809.0,93791.0,0.09596]
[1768332186583,0.09087775,93809.0,93792.0,0.010666]
[1768332186983,0.09087775,93809.0,93794.0,0.010665]
[1768332187485,0.09087775,93809.0,93796.0,0.010665]
[1768332188588,0.10154175,93808.0,93791.0,0.09596]
[1768332188775,0.00015987,93812.0,93791.0,0.09596]
[1768332189085,0.00015987,93812.0,93797.0,0.010665]
[1768332189383,0.00015987,93812.0,93791.0,0.09596]
[1768332189584,0.00015987,93812.0,93795.0,0.00015987]
[1768332190184,0.00015987,93812.0,93802.0,0.010664]
[1768332190588,0.00015987,93812.0,93799.0,0.010665]
[1768332190786,0.00015987,93812.0,93796.0,0.010665]
[1768332190989,0.09103762,93812.0,93796.0,0.010665]
[1768332191486,0.09103762,93812.0,93799.0,0.010665]
[1768332193884,0.09103762,93812.0,93801.0,0.010665]
[1768332194286,0.09103762,93812.0,93798.0,0.010665]
[1768332194889,0.09103762,93812.0,93797.0,0.010665]
[1768332195986,0.09103762,93812.0,93799.0,0.010665]
[1768332196191,0.1094576,93811.0,93796.0,0.010665]
[1768332196393,0.0987936,93811.0,93796.0,0.010665]
[1768332196890,0.0987936,93811.0,93795.0,0.01082487]
[1768332197091,0.0987936,93807.0,93795.0,0.00015987]
[1768332197290,0.0987936,93791.0,93780.0,9.315e-05]
[1768332197584,0.0987936,93780.0,93765.0,0.106669]
[1768332197790,0.0987936,93784.0,93767.0,0.010668]
[1768332198378,8.412e-05,93783.0,93767.0,0.010668]
[1768332198594,0.0987936,93782.0,93767.0,0.010668]
[1768332199086,0.0987936,93782.0,93770.0,0.010668]
[1768332200386,8.412e-05,93783.0,93776.0,0.010667]
[1768332200589,8.412e-05,93783.0,93764.0,0.010669]
[1768332200783,8.412e-05,93783.0,93771.0,0.010668]
[1768332201692,8.412e-05,93783.0,93773.0,0.010668]
[1768332201891,0.0987936,93784.0,93781.0,0.010667]
[1768332202087,0.0987936,93784.0,93767.0,0.010668]
[1768332202088,0.0987936,93784.0,93778.0,0.010667]
[1768332202593,0.0987936,93784.0,93769.0,0.00015996]
[1768332202781,0.0987936,93784.0,93771.0,0.010668]
[1768332203178,0.0987936,93784.0,93769.0,0.00015996]
[1768332203782,0.0987936,93784.0,93776.0,0.010667]
[1768332204694,0.0987936,93784.0,93769.0,0.00015996]
[1768332204888,0.0987936,93784.0,93777.0,0.010667]
[1768332205093,0.0987936,93784.0,93769.0,0.00015996]
[1768332205094,0.096,93806.0,93776.0,0.09194908]
[1768332205294,0.096,93806.0,93774.0,0.096]
[1768332205295,0.096,93809.0,93790.0,0.14173384]
[1768332205489,0.010664,93809.0,93782.0,0.10261608]
[1768332205691,0.010664,93809.0,93794.0,0.010665]
[1768332205890,0.19399594,93810.0,93790.0,0.010666]
[1768332206091,0.09799594,93809.0,93790.0,0.010666]
[1768332206291,0.010664,93806.0,93790.0,0.010666]
[1768332206490,0.010664,93806.0,93792.0,0.010666]
[1768332206686,0.09799594,93816.0,93800.0,0.010665]
[1768332206894,0.010663,93812.0,93797.0,0.010665]
[1768332207093,0.1094566,93812.0,93797.0,0.010665]
[1768332207603,0.0987936,93811.0,93800.0,0.010665]
[1768332207899,0.010664,93809.0,93794.0,0.010665]
[1768332208100,0.0987936,93809.0,93793.0,0.010666]
[1768332208400,0.010664,93806.0,93785.0,0.096]
[1768332208600,0.0987936,93804.0,93790.0,0.010666]
[1768332209801,8.9e-07,93793.0,93790.0,0.010666]
[1768332210098,0.0987936,93804.0,93793.0,0.010666]
[1768332210801,0.0987936,93804.0,93792.0,0.010666]
[1768332210998,0.0987936,93795.0,93763.0,0.010669]
[1768332211190,0.0987936,93790.0,93767.0,0.09604]
[1768332211394,0.0987936,93790.0,93785.0,0.010666]
[1768332211591,0.0987936,93790.0,93778.0,0.09604]
[1768332211793,0.0987936,93790.0,93781.0,0.010667]
[1768332212091,0.00015996,93793.0,93787.0,0.010666]
[1768332212404,9.6e-07,93793.0,93778.0,0.106707]
[1768332212599,9.6e-07,93793.0,93782.0,0.010667]
[1768332212902,9.6e-07,93793.0,93784.0,0.010666]
[1768332213399,9.6e-07,93793.0,93781.0,0.010667]
[1768332213595,9.6e-07,93793.0,93778.0,0.09604]
[1768332214100,9.6e-07,93793.0,93782.0,0.010667]
[1768332215900,9.6e-07,93793.0,93778.0,0.09604]
[1768332216201,9.6e-07,93793.0,93783.0,0.010667]
[1768332216998,9.6e-07,93793.0,93781.0,0.09821095]
[1768332217199,9.6e-07,93793.0,93783.0,0.010667]
[1768332217506,9.6e-07,93793.0,93787.0,0.010666]
[1768332217990,9.6e-07,93793.0,93779.0,0.010667]
[1768332218589,9.6e-07,93793.0,93780.0,0.14173384]
[1768332218789,9.6e-07,93793.0,93789.0,0.010666]
[1768332219005,9.6e-07,93793.0,93782.0,0.010667]
[1768332219197,9.6e-07,93793.0,93792.0,0.010666]
[1768332220206,9.6e-07,93793.0,93789.0,0.010666]
[1768332220698,9.6e-07,93793.0,93786.0,0.010666]
[1768332220904,9.6e-07,93793.0,93778.0,0.09604]
[1768332221203,9.6e-07,93793.0,93786.0,0.010666]
[1768332221403,9.6e-07,93793.0,93778.0,0.09604]
[1768332221596,9.6e-07,93793.0,93787.0,0.010666]
[1768332222100,9.6e-07,93793.0,93778.0,0.09604]
[1768332222288,9.6e-07,93793.0,93778.0,0.20144786]
[1768332222493,9.6e-07,93793.0,93789.0,0.010666]
[1768332223615,9.6e-07,93793.0,93781.0,0.01786391]
[1768332224004,9.6e-07,93793.0,93792.0,0.010666]
[1768332224501,9.6e-07,93793.0,93789.0,0.010666]
[1768332224694,9.6e-07,93793.0,93791.0,0.010666]
[1768332224890,0.09177182,93804.0,93791.0,0.010666]
[1768332225094,0.1889951,93803.0,93791.0,0.010666]
[1768332226302,0.1889951,93803.0,93781.0,0.01786391]
[1768332226303,0.1889951,93803.0,93793.0,0.010666]
[1768332227211,0.1889951,93803.0,93790.0,0.010666]
[1768332227511,0.1889951,93803.0,93782.0,0.010667]
[1768332228409,0.1889951,93803.0,93781.0,0.00719691]
[1768332228707,0.09722328,93802.0,93787.0,0.010666]
[1768332228904,0.1889951,93802.0,93788.0,0.010666]
[1768332229108,0.09722328,93801.0,93788.0,0.010666]
[1768332229406,0.09722328,93798.0,93787.0,0.010666]
[1768332229612,0.09722328,93797.0,93787.0,0.010666]
[1768332230497,0.09722328,93797.0,93779.0,0.010667]
[1768332230806,0.09177182,93798.0,93778.0,0.09604]
[1768332231001,0.09722328,93802.0,93780.0,0.01633188]
[1768332231201,0.09722328,93802.0,93791.0,0.010666]
[1768332231405,0.106704,93806.0,93778.0,0.09604]
[1768332231406,0.09177182,93800.0,93778.0,0.09604]
[1768332231603,0.09177182,93798.0,93778.0,0.09604]
[1768332231809,0.09722328,93797.0,93779.0,0.010667]
[1768332232903,0.09722328,93797.0,93788.0,0.010666]
[1768332233513,0.010664,93804.0,93778.0,0.09604]
[1768332233514,0.09722328,93801.0,93793.0,0.010665]
[1768332234711,0.09722328,93801.0,93782.0,0.010667]
[1768332235116,0.1889951,93798.0,93778.0,0.09604]
[1768332235414,0.09604,93806.0,93778.0,0.09604]
[1768332235415,0.1889951,93788.0,93779.0,0.010667]
[1768332235614,0.1889951,93787.0,93778.0,0.09604]
[1768332235801,0.09177182,93787.0,93779.0,0.010667]
[1768332236814,0.09722328,93791.0,93779.0,0.010667]
[1768332237017,0.09722328,93791.0,93781.0,0.010667]
[1768332237308,0.09722328,93791.0,93778.0,0.106707]
[1768332237508,0.09177182,93788.0,93776.0,0.00015996]
[1768332237712,0.1889951,93783.0,93769.0,0.09604]
[1768332237916,0.1889951,93782.0,93773.0,0.00514492]
[1768332238711,0.010667,93781.0,93773.0,0.00514492]
[1768332239210,0.010667,93781.0,93769.0,0.09604]
[1768332239614,0.010668,93774.0,93761.0,0.09604]
[1768332239818,0.09722328,93777.0,93762.0,0.010669]
[1768332240007,0.10789028,93777.0,93761.0,0.09604]
[1768332240316,0.010668,93775.0,93761.0,0.09604]
[1768332240516,0.1996631,93773.0,93761.0,0.09604]
[1768332240716,0.1996631,93773.0,93753.0,0.00533316]
[1768332240717,0.1996631,93771.0,93754.0,0.09604]
[1768332241015,0.1996631,93771.0,93756.0,0.01067]
[1768332241216,0.1996631,93771.0,93754.0,0.09604]
[1768332241514,0.1889951,93770.0,93755.0,0.01067]
[1768332242018,0.1889951,93770.0,93754.0,0.09604]
[1768332242315,0.1889951,93770.0,93755.0,0.01067]
[1768332242507,0.010669,93767.0,93754.0,0.09604]
[1768332242707,0.1889951,93757.0,93747.0,0.09604]
[1768332242910,0.09177182,93756.0,93743.0,0.010671]
[1768332243117,0.09177182,93756.0,93745.0,0.010671]
[1768332243415,0.09177182,93756.0,93740.0,0.09604]
[1768332243916,0.10244182,93756.0,93740.0,0.106711]
[1768332244100,0.10244182,93756.0,93744.0,0.010671]
[1768332244101,0.09177182,93756.0,93744.0,0.010671]
[1768332244613,0.09177182,93756.0,93740.0,0.09604]
[1768332244614,0.09177182,93756.0,93743.0,0.010671]
[1768332244811,0.0955502,93758.0,93740.0,0.09604]
[1768332245010,0.19139082,93762.0,93752.0,0.01067]
[1768332246309,0.19139082,93762.0,93749.0,0.01067]
[1768332246504,0.19139082,93762.0,93740.0,0.11199219]
[1768332248207,0.09584062,93760.0,93740.0,0.09604]
[1768332248615,0.09584062,93760.0,93748.0,0.010671]
[1768332249321,0.19139082,93760.0,93745.0,0.010671]
[1768332249518,0.19139082,93760.0,93740.0,0.09604]
[1768332249519,0.19139082,93759.0,93747.0,0.010671]
[1768332251508,0.19139082,93759.0,93740.0,0.09604]
[1768332251509,0.09584062,93755.0,93745.0,0.010671]
[1768332251709,0.09604,93770.0,93740.0,0.09604]
[1768332251710,0.19139082,93753.0,93740.0,0.09604]
[1768332251908,0.19139082,93753.0,93736.0,0.010672]
[1768332251909,0.19139082,93750.0,93736.0,0.010672]
[1768332252121,0.19139082,93744.0,93733.0,0.0053343]
[1768332252519,0.09584062,93744.0,93733.0,0.0053343]
[1768332252716,0.09584062,93744.0,93738.0,0.010672]
[1768332252920,0.09584062,93744.0,93738.0,0.01049628]
[1768332253114,0.09584062,93744.0,93735.0,0.010672]
[1768332253914,0.19139082,93743.0,93733.0,0.0053343]
[1768332254315,0.09604,93753.0,93733.0,0.0053343]
[1768332254519,0.09604,93753.0,93736.0,0.010672]
[1768332254814,0.010671,93747.0,93728.0,0.010673]
[1768332255014,0.010671,93745.0,93728.0,0.010673]
[1768332255517,0.09604,93753.0,93726.0,0.010673]
[1768332255725,0.010671,93744.0,93726.0,0.010673]
[1768332255913,0.010671,93744.0,93728.0,0.010673]
[1768332256113,0.010671,93747.0,93728.0,0.010673]
[1768332256313,0.18293011,93746.0,93728.0,0.010673]
[1768332256527,0.0919189,93740.0,93728.0,0.010673]
[1768332256712,0.09604,93740.0,93728.0,0.010673]
[1768332256914,0.09604,93740.0,93720.0,0.09604]
[1768332258817,0.1879589,93740.0,93720.0,0.09604]
[1768332259027,0.0919189,93739.0,93720.0,0.09604]
[1768332259221,0.0919189,93739.0,93728.0,0.010673]
[1768332259423,0.09604,93740.0,93738.0,0.010672]
[1768332259611,0.09604,93741.0,93738.0,0.010672]
[1768332259810,0.09604,93742.0,93735.0,0.010672]
[1768332260926,0.00015996,93748.0,93727.0,0.1911338]
[1768332261136,0.09101121,93762.0,93745.0,0.010671]
[1768332261324,0.09101121,93762.0,93740.0,0.0996518]
[1768332261511,0.09608,93761.0,93749.0,0.01067]
[1768332261711,0.09608,93763.0,93744.0,0.091482]
[1768332262120,0.0919189,93758.0,93734.0,0.010672]
[1768332262321,0.0919189,93756.0,93734.0,0.010672]
[1768332262523,0.09101121,93755.0,93734.0,0.010672]
[1768332262725,0.0919189,93761.0,93738.0,0.091482]
[1768332263226,0.0919189,93760.0,93738.0,0.091482]
[1768332263721,0.09101121,93774.0,93749.0,0.0996518]
[1768332263914,0.10167921,93772.0,93754.0,0.01067]
[1768332264116,0.106,93791.0,93753.0,0.01067]
[1768332264117,0.09101121,93769.0,93753.0,0.01067]
[1768332264317,0.09101121,93769.0,93754.0,0.00015996]
[1768332264819,0.106748,93770.0,93745.0,0.010671]
[1768332264820,0.09101121,93761.0,93745.0,0.010671]
[1768332265222,0.09101121,93757.0,93727.0,0.091482]
[1768332265426,0.00015996,93771.0,93714.0,0.010675]
[1768332265427,0.010671,93748.0,93730.0,0.010673]
[1768332265626,0.0919189,93750.0,93725.0,0.091482]
[1768332266027,0.00015996,93747.0,93733.0,0.010672]
[1768332266218,0.0919189,93764.0,93738.0,0.091482]
[1768332266419,0.0919189,93769.0,93746.0,0.091482]
[1768332266734,0.09608,93768.0,93746.0,0.091482]
[1768332266919,0.010669,93765.0,93746.0,0.091482]
[1768332267124,0.010669,93766.0,93746.0,0.102153]
[1768332267623,0.010669,93766.0,93746.0,0.10231296]
[1768332267820,0.010669,93766.0,93748.0,0.010671]
[1768332268026,0.010669,93764.0,93746.0,0.09164196]
[1768332268225,0.010669,93764.0,93747.0,0.010671]
[1768332268930,0.010669,93762.0,93746.0,0.09164196]
[1768332269230,0.1025879,93762.0,93746.0,0.00015996]
[1768332270231,0.0919189,93762.0,93747.0,0.010671]
[1768332271534,0.18293011,93762.0,93746.0,0.00015996]
[1768332271734,0.01067,93755.0,93746.0,0.00015996]
[1768332271931,0.010671,93748.0,93729.0,0.010673]
[1768332272136,0.0919189,93749.0,93728.0,0.187562]
[1768332272621,0.0919189,93749.0,93729.0,0.091482]
[1768332272819,0.0919189,93749.0,93737.0,0.010672]
[1768332273834,0.0919189,93749.0,93734.0,0.010672]
[1768332274235,0.18293011,93754.0,93730.0,0.091482]
[1768332274538,0.19360011,93754.0,93738.0,0.010672]
[1768332274830,0.09287342,93756.0,93744.0,0.010671]
[1768332275031,0.010668,93774.0,93744.0,0.010671]
[1768332275032,0.18895342,93765.0,93748.0,0.010671]
[1768332275230,0.010669,93764.0,93748.0,0.010671]
[1768332275436,0.010669,93762.0,93745.0,0.010671]
[1768332275638,0.10354242,93762.0,93745.0,0.010671]
[1768332276439,0.09287342,93762.0,93747.0,0.010671]
[1768332278942,0.10354242,93761.0,93744.0,0.010671]
[1768332279140,0.09311939,93757.0,93741.0,0.010671]
[1768332279337,0.09287342,93753.0,93738.0,0.09608]
[1768332279532,0.09287342,93748.0,93730.0,0.09608]
[1768332279938,0.09311939,93754.0,93730.0,0.09608]
[1768332279939,0.01067,93752.0,93730.0,0.09608]
[1768332280236,0.01067,93752.0,93734.0,0.010672]
[1768332280432,0.01067,93750.0,93734.0,0.010672]
[1768332280634,0.09226871,93749.0,93731.0,0.010672]
[1768332280833,0.09226871,93749.0,93730.0,0.09608]
[1768332280834,0.09226871,93747.0,93732.0,0.010672]
[1768332281140,0.09226871,93747.0,93730.0,0.09608]
[1768332281141,0.010671,93750.0,93734.0,0.010672]
[1768332283145,0.09482867,93750.0,93734.0,0.010672]
[1768332284052,0.08345132,93747.0,93731.0,0.010673]
[1768332284548,0.010671,93746.0,93730.0,0.09608]
[1768332284750,0.09412232,93746.0,93730.0,0.106753]
[1768332284945,0.08345132,93745.0,93730.0,0.106753]
[1768332285250,0.08345132,93745.0,93730.0,0.010673]
[1768332285451,0.08345132,93740.0,93721.0,0.09420079]
[1768332285653,0.010671,93742.0,93723.0,0.09408855]
[1768332285950,0.010671,93742.0,93727.0,0.010673]
[1768332286144,0.010671,93742.0,93721.0,0.09862783]
[1768332286145,0.08532449,93743.0,93721.0,0.00011224]
[1768332286345,0.17844388,93729.0,93713.0,0.00533544]
[1768332286551,0.08521225,93721.0,93703.0,0.09608]
[1768332286752,0.010674,93720.0,93703.0,0.09608]
[1768332287051,0.08521225,93721.0,93704.0,0.010676]
[1768332287249,0.0853723,93721.0,93704.0,0.010676]
[1768332287447,0.0853723,93721.0,93707.0,0.010675]
[1768332287448,0.00010632,93720.0,93707.0,0.010675]
[1768332288252,0.00010632,93720.0,93704.0,0.010676]
[1768332288844,0.00010632,93720.0,93707.0,0.010675]
[1768332289042,0.00010632,93720.0,93706.0,0.010675]
[1768332289754,0.00010632,93720.0,93708.0,0.010675]
[1768332291152,0.00010632,93720.0,93705.0,0.010675]
[1768332291354,0.00010632,93720.0,93703.0,0.09608]
[1768332291560,0.00010632,93720.0,93708.0,0.010675]
[1768332293351,0.00010632,93720.0,93710.0,0.09483603]
[1768332294561,0.00010632,93720.0,93710.0,0.10551103]
[1768332294757,0.00010632,93720.0,93710.0,0.09483603]
[1768332296453,0.08578154,93720.0,93707.0,0.010675]
[1768332296658,0.09634922,93717.0,93703.0,0.09608]
[1768332296859,0.08567522,93717.0,93700.0,0.09483603]
[1768332298063,0.10686032,93720.0,93700.0,0.09483603]
[1768332298360,0.10686032,93720.0,93710.0,0.09483603]
[1768332299360,0.010674,93717.0,93710.0,0.09483603]
[1768332299562,0.10686032,93720.0,93707.0,0.09483603]
[1768332299860,0.10686032,93720.0,93710.0,0.09483603]
[1768332300261,0.010674,93718.0,93704.0,0.010676]
[1768332300763,0.010674,93716.0,93701.0,0.010676]
[1768332300963,0.010674,93719.0,93700.0,0.09483603]
[1768332301263,0.010674,93719.0,93704.0,0.010676]
[1768332301852,0.17936207,93720.0,93701.0,0.09408855]
[1768332302059,0.09618632,93720.0,93709.0,0.09483603]
[1768332302764,0.08513747,93719.0,93706.0,0.010675]
[1768332302961,0.09618632,93720.0,93710.0,0.09483603]
[1768332303352,0.010674,93719.0,93710.0,0.09483603]
[1768332303557,0.09618632,93720.0,93702.0,0.09408855]
[1768332303762,0.00010632,93720.0,93710.0,0.09483603]
[1768332303954,0.09618632,93720.0,93710.0,0.09483603]
[1768332304265,0.09618632,93720.0,93711.0,0.010675]
[1768332304460,3.7e-07,93721.0,93718.0,0.010674]
[1768332304666,3.7e-07,93721.0,93720.0,0.010674]
[1768332304854,0.17501303,93736.0,93718.0,0.09408855]
[1768332305055,0.09608,93729.0,93718.0,0.10476255]
[1768332305452,4.108e-05,93728.0,93719.0,0.010674]
[1768332305963,4.108e-05,93728.0,93718.0,0.18892458]
[1768332307864,4.108e-05,93728.0,93718.0,0.09483603]
[1768332308354,4.108e-05,93728.0,93715.0,0.010674]
[1768332309365,0.010673,93727.0,93713.0,0.010675]
[1768332309564,0.010673,93727.0,93715.0,0.010674]
[1768332310061,0.010674,93722.0,93710.0,0.010675]
[1768332310269,0.010673,93725.0,93712.0,0.010675]
[1768332310568,0.010674,93720.0,93708.0,0.010675]
[1768332311066,0.010674,93723.0,93706.0,0.09116562]
[1768332311260,0.010673,93725.0,93712.0,0.010675]
[1768332314664,0.08958382,93726.0,93710.0,0.09483603]
[1768332314963,0.010673,93724.0,93711.0,0.010675]
[1768332315171,0.08958382,93723.0,93707.0,0.010675]
[1768332315470,0.010674,93722.0,93710.0,0.09483603]
[1768332315670,0.010674,93722.0,93706.0,0.09116562]
[1768332315671,0.010674,93720.0,93706.0,0.10184062]
[1768332315862,0.010674,93718.0,93706.0,0.09116562]
[1768332316170,0.010674,93717.0,93706.0,0.09116562]
[1768332316469,0.010674,93717.0,93707.0,0.09483603]
[1768332316662,0.010674,93720.0,93706.0,0.09116562]
[1768332316869,0.08958382,93724.0,93706.0,0.09116562]
[1768332317070,0.08964621,93721.0,93709.0,0.010675]
[1768332317668,0.010674,93722.0,93709.0,0.010675]
[1768332317867,4.108e-05,93728.0,93716.0,0.09107123]
[1768332318175,4.108e-05,93728.0,93718.0,0.09483603]
[1768332318466,4.108e-05,93728.0,93718.0,0.10551003]
[1768332318867,0.08964621,93736.0,93718.0,0.10551003]
[1768332318868,0.10031821,93736.0,93718.0,0.09483603]
[1768332319172,0.09608,93748.0,93731.0,0.09107123]
[1768332319365,0.0887007,93742.0,93727.0,0.010673]
[1768332319567,0.0993727,93740.0,93727.0,0.010673]
[1768332319764,0.0887007,93740.0,93727.0,0.010673]
[1768332320074,0.010672,93736.0,93725.0,0.00016005]
[1768332320874,0.08710358,93743.0,93725.0,0.00016005]
[1768332320875,0.010672,93739.0,93725.0,0.00016005]
[1768332321375,0.18318358,93748.0,93728.0,0.18229072]
[1768332321674,0.09608,93747.0,93735.0,0.09107123]
[1768332322071,0.01067,93756.0,93740.0,0.010672]
[1768332322275,0.01067,93752.0,93741.0,0.09107123]
[1768332322674,0.01067,93750.0,93741.0,0.09107123]
[1768332325371,0.09608,93755.0,93741.0,0.09107123]
[1768332326077,0.010671,93748.0,93735.0,0.18229072]
[1768332326476,0.010671,93748.0,93736.0,0.09107123]
[1768332326671,0.09608,93755.0,93737.0,0.09107123]
[1768332326871,0.010671,93749.0,93738.0,0.09107123]
[1768332327980,0.09608,93755.0,93738.0,0.09107123]
[1768332328478,0.01067,93751.0,93738.0,0.09107123]
[1768332328679,0.08648274,93765.0,93745.0,0.18229072]
[1768332328867,0.106749,93764.0,93751.0,0.09107123]
[1768332329178,0.08648274,93770.0,93751.0,0.09107123]
[1768332329179,0.010669,93762.0,93751.0,0.09107123]
[1768332329579,0.010669,93760.0,93751.0,0.09107123]
[1768332329779,0.01067,93758.0,93751.0,0.09107123]
[1768332330569,0.01067,93754.0,93748.0,0.00016005]
[1768332330769,0.01067,93750.0,93748.0,5e-08]
[1768332330974,0.09608,93763.0,93720.0,0.14221007]
[1768332330975,0.09989568,93749.0,93728.0,0.09608]
[1768332331174,0.09989568,93755.0,93728.0,0.09608]
[1768332331374,0.01067,93754.0,93728.0,0.09608]
[1768332331576,0.09989568,93755.0,93727.0,0.09608]
[1768332331781,0.010672,93733.0,93726.0,0.09608]
[1768332332281,0.010672,93736.0,93726.0,0.09608]
[1768332332678,0.010672,93736.0,93727.0,0.09107123]
[1768332332881,0.010672,93736.0,93727.0,0.18229072]
[1768332333186,0.010672,93734.0,93727.0,0.18229072]
[1768332333386,0.00016005,93747.0,93727.0,7.2e-07]
[1768332333387,0.010673,93729.0,93727.0,7.2e-07]
[1768332333682,0.11056768,93740.0,93718.0,0.09608]
[1768332333884,0.010673,93727.0,93716.0,0.09608]
[1768332334272,0.010672,93740.0,93716.0,0.09608]
[1768332334478,0.010673,93729.0,93716.0,0.09608]
[1768332335384,0.010673,93727.0,93717.0,0.09244473]
[1768332335686,0.010673,93727.0,93720.0,0.19060525]
[1768332335875,0.010673,93727.0,93721.0,0.09816052]
[1768332336075,0.09168202,93742.0,93721.0,0.09816052]
[1768332336376,0.09168202,93742.0,93721.0,0.03023052]
[1768332336586,0.09608,93741.0,93721.0,0.02619252]
[1768332337986,0.09608,93741.0,93722.0,0.09244473]
[1768332338390,0.28093108,93741.0,93716.0,0.09608]
[1768332338786,0.09195546,93738.0,93716.0,0.19424052]
[1768332338986,0.09195546,93737.0,93716.0,0.19424052]
[1768332339382,0.09289562,93738.0,93717.0,0.09816052]
[1768332339986,0.09608,93741.0,93719.0,0.09816052]
[1768332340180,0.09608,93741.0,93722.0,0.09816052]
[1768332340376,0.09608,93741.0,93723.0,0.09816052]
[1768332343094,0.09608,93741.0,93723.0,0.10883352]
[1768332343400,0.18485108,93746.0,93725.0,0.09816052]
[1768332343688,0.09608,93745.0,93725.0,0.09816052]
[1768332343894,0.18803546,93745.0,93724.0,0.09244473]
[1768332344094,0.09608,93744.0,93724.0,0.09244473]
[1768332344296,0.09608,93743.0,93724.0,0.09244473]
[1768332345399,0.09195546,93745.0,93725.0,0.010673]
[1768332345586,0.09608,93744.0,93725.0,0.010673]
[1768332346493,0.09608,93744.0,93724.0,0.09244473]
[1768332346694,0.18803546,93744.0,93724.0,0.09244473]
[1768332346894,0.09195546,93744.0,93724.0,0.09244473]
[1768332347086,0.09608,93743.0,93724.0,0.09244473]
[1768332347284,3e-08,93793.0,93772.0,0.09816052]
[1768332347504,3e-08,93793.0,93786.0,0.07956061]
[1768332347708,0.09608,93813.0,93787.0,0.010666]
[1768332348310,0.09608,93813.0,93796.0,0.010665]
[1768332348516,0.09608,93813.0,93792.0,0.010666]
[1768332349513,0.09289562,93820.0,93793.0,0.09816052]
[1768332349717,0.09608,93819.0,93798.0,0.09244473]
[1768332349918,0.09608,93819.0,93802.0,0.010664]
[1768332350621,0.09608,93819.0,93803.0,0.010664]
[1768332350821,0.09608,93819.0,93812.0,0.010664]
[1768332351421,0.09608,93819.0,93799.0,0.09244473]